Workbook

Sheet Superpesis
B1: Jenni Rahikainen | E1: 10.12.1990 Oulu
B2: SUPERPESIS | E2: Runkosarja | I2: Kärkilyönnit (KL), pesänvälit | P2: Ylempi loppusarja | U2: Alempi loppusarja | Z2: Arvo-ottelut ja mitalit | AF2: Runkosarjan jälkeen
B3: Vuosi | C3: Sija | D3: Seura | E3: OTT | F3: KUN | G3: LÖI | H3: TOI | I3: KL | J3: 0 > 1 | K3: 1 > 2 | L3: 2 > 3 | M3: 3 > k | N3: KL-% | P3: OTT | Q3: KUN | R3: LÖI | S3: TOI | T3: KL | U3: OTT | V3: KUN | W3: LÖI | X3: TOI | Y3: KL | Z3: IL | AA3: LL | AB3: Halli | AC3: K | AD3: H | AE3: P
B4: 2006 | D4: Lippo | F4: suomensarja
B5: 2007 | D5: Lippo Juniorit | F5: ykköspesis
B6: 2008 | D6: Lippo Juniorit | F6: ykköspesis
B7: 2009 | C7: 6. | D7: Lippo Juniorit | E7: 24 | F7: 1 | G7: 11 | H7: 9 | I7: 54 | J7: 18 | K7: 8 | L7: 16 | M7: 12 | N7: 44.3 % | O7: =PRODUCT(I7/N7) -> 122.0063263 | P7: 3 | Q7: 0 | R7: 2 | S7: 0 | T7: 6 | AF7: play off
B8: 2010 | C8: 11. | D8: Lippo Juniorit | E8: 8 | F8: 0 | G8: 0 | H8: 8 | I8: 20 | J8: 10 | K8: 9 | L8: 1 | M8: 0 | N8: 39.2 % | O8: =PRODUCT(I8/N8) -> 51.00739607
B9: 2011 | C9: 9. | D9: PeTo-Jussit | E9: 21 | F9: 2 | G9: 19 | H9: 6 | I9: 64 | J9: 14 | K9: 13 | L9: 16 | M9: 21 | N9: 46.7 % | O9: =PRODUCT(I9/N9) -> 137.0449679
B10: 2012 | C10: 3. | D10: Pesäkarhut | E10: 21 | F10: 1 | G10: 5 | H10: 13 | I10: 58 | J10: 25 | K10: 8 | L10: 19 | M10: 6 | N10: 49.2 % | O10: =PRODUCT(I10/N10) -> 117.8861789 | P10: 10 | Q10: 0 | R10: 3 | S10: 5 | T10: 38 | AE10: 1 | AF10: play off
B11: Yhteensä | E11: =SUM(E4:E10) -> 74 | F11: 4 | G11: 35 | H11: 36 | I11: 196 | J11: 67 | K11: 38 | L11: 52 | M11: 39 | N11: =PRODUCT(I11/O11) -> 45.8 % | O11: =SUM(O7:O10) -> 427.9448691 | P11: =SUM(P4:P10) -> 13 | Q11: 0 | R11: 5 | S11: 5 | T11: 44 | U11: 0 | V11: 0 | W11: 0 | X11: 0 | Y11: 0 | Z11: 0 | AA11: 0 | AB11: 0 | AC11: 0 | AD11: 0 | AE11: 1
B12: Pesispörssi | D12: =SUM(F11:H11)+((I11-F11-G11)/3)+(E11/3)+(Z11*25)+(AA11*25)+(AB11*10)+(AC11*25)+(AD11*20)+(AE11*15) -> 167.0
B14: URA SUPERISSA | E14: OTT | F14: KUN | G14: LÖI | H14: TOI | I14: KL | K14: ka/L | L14: ka/T | M14: ka/KL | N14: KL - % | P14: ENSIMMÄISET
B15: Runkosarja | E15: =PRODUCT(E11) -> 74 | F15: =PRODUCT(F11) -> 4 | G15: =PRODUCT(G11) -> 35 | H15: =PRODUCT(H11) -> 36 | I15: =PRODUCT(I11) -> 196 | K15: =PRODUCT((F15+G15)/E15) -> 0.53 | L15: =PRODUCT(H15/E15) -> 0.49 | M15: =PRODUCT(I15/E15) -> 2.65 | N15: =PRODUCT(N11) -> 45.8 % | O15: =PRODUCT(O11) -> 427.9448691 | P15: Ottelu | S15: 13.05. 2009 Lipottaret - TyTe 2-0 (3-1, 2-1) | AD15: 1. ottelu | AF15: 18 v 5 kk 3 pv
B16: Ylempi loppusarja | E16: =SUM(P11) -> 13 | F16: =SUM(Q11) -> 0 | G16: =SUM(R11) -> 5 | H16: =SUM(S11) -> 5 | I16: =SUM(T11) -> 44 | K16: =PRODUCT((F16+G16)/E16) -> 0.38 | L16: =PRODUCT(H16/E16) -> 0.38 | M16: =PRODUCT(I16/E16) -> 3.38 | N16: 51.8 % | O16: =PRODUCT(I16/N16) -> 84.94208494 | P16: Lyöty juoksu | S16: 13.05. 2009 Lipottaret - TyTe 2-0 (3-1, 2-1) | AD16: 1. ottelu | AF16: 18 v 5 kk 3 pv
B17: Alempi loppusarja | P17: Tuotu juoksu | S17: 31.05. 2009 Lipottaret - PeTo-Jussit 0-2 (3-7, 6-7) | AD17: 5. ottelu | AF17: 18 v 5 kk 21 pv
B18: KAIKKI | E18: =SUM(E15:E17) -> 87 | F18: =SUM(F15:F17) -> 4 | G18: =SUM(G15:G17) -> 40 | H18: =SUM(H15:H17) -> 41 | I18: =SUM(I15:I17) -> 240 | K18: =PRODUCT((F18+G18)/E18) -> 0.51 | L18: =PRODUCT(H18/E18) -> 0.47 | M18: =PRODUCT(I18/E18) -> 2.76 | N18: =PRODUCT(I18/O18) -> 46.8 % | O18: =SUM(O15:O17) -> 512.886954 | P18: Kunnari | S18: 15.07. 2009 TyTe - Lipottaret 0-1 (4-7, 3-3) | AD18: 17. ottelu | AF18: 18 v 7 kk 5 pv
B20: Seurat | D20: Lippo Juniorit = Oulun Lippo Juniorit (2003), kasvattajaseura
D21: Lippo = Oulun Lippo (1955)
D22: PeTo-Jussit = PeTo-Jussit, Seinäjoki (2004)
D23: Pesäkarhut = Pesäkarhut, Pori (1985)

Sheet Arvo-ottelut
B1: ITÄ - LÄNSI - KORTTI
B2: Jenni Rahikainen | C2: 10.12.1990 Oulu
B3: B-TYTÖT | C3: Itä - Länsi, tulos | D3: Joukkue | E3: Seura | G3: V | H3: T | I3: H | J3: Up. | K3: Lj. | L3: Palk. | M3: O | N3: K | O3: L | P3: T | Q3: KL | R3: 1 | S3: 2 | T3: 3 | U3: k | V3: KL-% | W3: Pelinjohtaja | X3: Yleisöä
B4: 29.06. 2008 Raahe | C4: 2-0 (4-3, 5-3) | D4: Länsi | E4: Lippo Juniorit | I4: 1 | J4: 1v | K4: 8 | M4: 1 | Q4: 1/8 | R4: 1/3 | S4: 0/1 | T4: 0/2 | U4: 0/2 | V4: 12.5 % | W4: Tommi Joensuu | X4: 1423
B5: 28.06. 2009 Kuopio | C5: 2-1 (1-4, 4-3, 1-0) | D5: Länsi | E5: Lippo Juniorit | I5: 1 | J5: 2v | K5: 9 | M5: 1 | Q5: 3/10 | R5: 1/2 | S5: 1/2 | T5: 1/5 | U5: 0/1 | V5: 30.0 % | W5: Hannu Kalmari | X5: 2071
B6: Yhteensä | Q6: 4/18 | R6: 2/5 | S6: 1/3 | T6: 1/7 | U6: 0/3 | V6: 22.2 %
